bitfinex/quotes_BTCUSD_20260110
["timestamp","ask_amount","ask_price","bid_price","bid_amount"]
[1768012005971,0.03,90748.0,90741.0,0.04787489]
[1768012010785,0.03,90744.0,90737.0,0.01102086]
[1768012010988,0.0781613,90738.0,90737.0,0.01095273]
[1768012011564,0.0255962,90738.0,90737.0,0.01095273]
[1768012011767,0.01516449,90738.0,90737.0,0.01095273]
[1768012012111,0.03,90748.0,90739.0,0.04664299]
[1768012013320,0.03,90748.0,90739.0,0.04651762]
[1768012013739,0.02859317,90747.0,90736.0,0.01102098]
[1768012013890,0.05859317,90737.0,90736.0,0.01102098]
[1768012016098,0.02859317,90740.0,90737.0,0.01102086]
[1768012016244,0.05859317,90738.0,90737.0,0.01102086]
[1768012017839,0.05859317,90738.0,90737.0,0.01095274]
[1768012019014,0.03,90743.0,90738.0,0.01102074]
[1768012019152,0.03,90743.0,90739.0,0.04664299]
[1768012020228,0.03,90742.0,90739.0,0.04664299]
[1768012020691,0.03,90742.0,90739.0,0.0576636]
[1768012020883,0.03,90742.0,90739.0,0.04664299]
[1768012021240,0.03,90747.0,90739.0,0.04664299]
[1768012023141,0.04101964,90747.0,90739.0,0.04664299]
[1768012023552,0.03,90745.0,90739.0,0.04664299]
[1768012024627,0.03,90747.0,90739.0,0.04664299]
[1768012028264,0.03,90746.0,90741.0,0.04898168]
[1768012028466,0.03004266,90746.0,90741.0,0.04898168]
[1768012029209,0.03,90745.0,90743.0,0.04898168]
[1768012029417,0.03,90745.0,90740.0,0.04898168]
[1768012029654,0.03,90745.0,90740.0,0.06000217]
[1768012030286,0.03,90744.0,90741.0,0.04898168]
[1768012031408,0.03,90743.0,90741.0,0.04898168]
[1768012032373,0.03,90742.0,90741.0,0.04798268]
[1768012035770,4.266e-05,90746.0,90741.0,0.04798268]
[1768012037835,0.02959217,90743.0,90738.0,0.01102074]
[1768012038063,0.05959217,90739.0,90738.0,0.01102074]
[1768012038404,0.05859317,90739.0,90738.0,0.01102074]
[1768012038754,0.03,90737.0,90733.0,0.1040881]
[1768012038901,0.03,90737.0,90736.0,0.04898168]
[1768012039236,4.266e-05,90746.0,90736.0,0.04898168]
[1768012040134,4.266e-05,90746.0,90736.0,0.06000266]
[1768012040265,4.266e-05,90746.0,90736.0,0.04898168]
[1768012040464,4.266e-05,90746.0,90736.0,0.06000266]
[1768012040881,4.266e-05,90746.0,90736.0,0.04898168]
[1768012041080,4.266e-05,90746.0,90736.0,0.06000266]
[1768012041557,4.266e-05,90746.0,90738.0,0.04898168]
[1768012041903,4.266e-05,90746.0,90738.0,0.06000242]
[1768012042338,0.03004266,90746.0,90738.0,0.06000242]
[1768012042549,0.03004266,90746.0,90740.0,0.04898168]
[1768012043459,0.03,90745.0,90728.0,0.01102195]
[1768012043611,0.03,90745.0,90725.0,0.02208]
[1768012043612,0.03,90745.0,90736.0,0.01102098]
[1768012044206,0.03,90745.0,90736.0,0.06000266]
[1768012044432,0.03,90744.0,90736.0,0.06000266]
[1768012045053,0.03,90744.0,90736.0,0.04898168]
[1768012045682,0.03,90743.0,90736.0,0.06000266]
[1768012045969,0.03,90743.0,90736.0,0.04898168]
[1768012047014,0.03,90742.0,90736.0,0.04898168]
[1768012047443,0.03,90742.0,90736.0,0.06000266]
[1768012048106,4.266e-05,90746.0,90736.0,0.06000266]
[1768012048324,4.266e-05,90746.0,90736.0,0.04898168]
[1768012048532,4.266e-05,90746.0,90736.0,0.06000266]
[1768012048732,4.266e-05,90746.0,90736.0,0.04898168]
[1768012049359,0.03,90745.0,90736.0,0.04898168]
[1768012050267,0.03,90744.0,90736.0,0.04898168]
[1768012051476,4.266e-05,90746.0,90736.0,0.06000266]
[1768012051676,4.266e-05,90746.0,90736.0,0.04898168]
[1768012052506,4.266e-05,90746.0,90736.0,0.06000266]
[1768012052723,4.266e-05,90746.0,90736.0,0.04898168]
[1768012053493,0.03004266,90746.0,90736.0,0.04898168]
[1768012054703,0.03,90745.0,90736.0,0.04898168]
[1768012054881,0.03,90745.0,90736.0,0.06000266]
[1768012055747,0.03,90744.0,90739.0,0.04729853]
[1768012056806,0.03,90743.0,90739.0,0.04729853]
[1768012057702,0.03,90743.0,90739.0,0.05831914]
[1768012058253,4.266e-05,90746.0,90739.0,0.05831914]
[1768012060550,4.266e-05,90746.0,90740.0,0.01102049]
[1768012060738,4.266e-05,90746.0,90739.0,0.05831914]
[1768012061964,4.266e-05,90746.0,90740.0,0.01102049]
[1768012062692,0.00039,90753.0,90742.0,0.01102025]
[1768012062826,0.030999,90742.0,90730.0,0.04729853]
[1768012063169,0.030999,90742.0,90730.0,0.05832024]
[1768012063342,0.03,90742.0,90732.0,0.04729853]
[1768012063952,0.03,90741.0,90732.0,0.04729853]
[1768012064713,0.000999,90732.0,90726.0,0.04729853]
[1768012064916,0.01102049,90740.0,90733.0,0.000999]
[1768012064917,0.03,90735.0,90733.0,0.000999]
[1768012065751,0.03,90735.0,90726.0,0.04729853]
[1768012065881,0.03,90736.0,90726.0,0.04729853]
[1768012066079,0.04102098,90736.0,90726.0,0.04729853]
[1768012066292,0.03,90736.0,90726.0,0.04729853]
[1768012066485,0.03,90734.0,90726.0,0.04729853]
[1768012067491,0.03,90736.0,90726.0,0.04729853]
[1768012068363,0.04102098,90736.0,90726.0,0.04729853]
[1768012068623,0.03,90735.0,90726.0,0.04729853]
[1768012069738,0.03,90734.0,90726.0,0.04729853]
[1768012070681,0.03,90733.0,90726.0,0.04729853]
[1768012071686,0.03,90732.0,90726.0,0.04729853]
[1768012073015,0.03,90731.0,90725.0,0.02208]
[1768012073493,0.03,90731.0,90725.0,0.03310232]
[1768012073715,0.03,90731.0,90725.0,0.07823661]
[1768012073930,0.04102074,90738.0,90726.0,0.04513429]
[1768012074139,0.03,90738.0,90726.0,0.04513429]
[1768012074318,0.03,90738.0,90726.0,0.05615648]
[1768012074522,0.04102074,90738.0,90726.0,0.04513429]
[1768012074969,0.03,90736.0,90726.0,0.04513429]
[1768012075173,0.03,90736.0,90726.0,0.05615648]
[1768012075374,0.03,90736.0,90726.0,0.04513429]
[1768012075551,0.03,90736.0,90726.0,0.05615648]
[1768012075779,0.03,90736.0,90727.0,0.05615636]
[1768012075987,0.03,90735.0,90727.0,0.04513429]
[1768012077384,0.03,90734.0,90727.0,0.04513429]
[1768012078417,0.03,90738.0,90727.0,0.04513429]
[1768012078593,0.03,90733.0,90727.0,0.04513429]
[1768012079419,0.03,90732.0,90727.0,0.04513429]
[1768012080469,0.03,90737.0,90727.0,0.04513429]
[1768012082953,0.01102074,90738.0,90727.0,0.04548655]
[1768012082954,0.03,90734.0,90727.0,0.04548655]
[1768012083317,0.03,90734.0,90728.0,0.04890462]
[1768012084083,0.03,90733.0,90728.0,0.04890462]
[1768012085154,0.03,90732.0,90728.0,0.04890462]
[1768012086201,0.03,90739.0,90728.0,0.04890462]
[1768012086405,0.03,90737.0,90727.0,0.00035226]
[1768012086647,0.03,90737.0,90727.0,0.01137433]
[1768012087140,0.03,90737.0,90727.0,0.00035226]
[1768012090172,0.03,90736.0,90727.0,0.00035226]
[1768012091303,0.03,90735.0,90727.0,0.00035226]
[1768012092280,0.03,90734.0,90727.0,0.00035226]
[1768012093547,0.03,90733.0,90727.0,0.00035226]
[1768012094577,0.03,90732.0,90727.0,0.00035226]
[1768012095497,0.03,90731.0,90727.0,0.00035226]
[1768012096062,0.01102049,90740.0,90731.0,0.000999]
[1768012096561,0.01102049,90740.0,90727.0,0.00035226]
[1768012096805,0.03,90739.0,90727.0,0.00035226]
[1768012097198,0.03,90739.0,90727.0,0.01137433]
[1768012097844,0.03,90736.0,90727.0,0.00035226]
[1768012098063,0.03,90736.0,90727.0,0.01137433]
[1768012098805,0.03,90735.0,90727.0,0.01137433]
[1768012098961,0.03,90735.0,90727.0,0.00035226]
[1768012099165,0.03,90735.0,90728.0,0.01102195]
[1768012100115,0.03,90734.0,90727.0,0.01137433]
[1768012100589,0.03,90734.0,90727.0,0.00035226]
[1768012100968,0.03,90734.0,90727.0,0.01137433]
[1768012101173,0.03,90734.0,90727.0,0.00035226]
[1768012101514,0.03,90733.0,90727.0,0.00035226]
[1768012101922,0.03,90733.0,90727.0,0.06027895]
[1768012102077,0.03,90733.0,90727.0,0.04925688]
[1768012102762,0.03,90732.0,90727.0,0.04925688]
[1768012103772,0.03,90739.0,90727.0,0.04925688]
[1768012104424,0.03,90739.0,90727.0,0.06027895]
[1768012106696,0.03,90739.0,90727.0,0.04925688]
[1768012107291,0.03,90739.0,90727.0,0.06027895]
[1768012107499,0.03,90738.0,90727.0,0.04925688]
[1768012107701,0.03,90738.0,90727.0,0.06027895]
[1768012108627,0.03,90737.0,90727.0,0.06027895]
[1768012109606,0.03,90740.0,90727.0,0.06027895]
[1768012109763,0.04102049,90740.0,90727.0,0.06027895]
[1768012109970,0.03,90738.0,90727.0,0.01137433]
[1768012110509,0.03,90736.0,90727.0,0.01137433]
[1768012111702,0.03,90736.0,90727.0,0.00035226]
[1768012111903,0.03,90736.0,90727.0,0.01137433]
[1768012113099,0.03,90736.0,90727.0,0.00035226]
[1768012113269,0.03,90736.0,90727.0,0.01137433]
[1768012113469,0.03,90736.0,90727.0,0.00035226]
[1768012113827,0.03,90739.0,90727.0,0.00035226]
[1768012114152,0.03,90739.0,90727.0,0.01137433]
[1768012115007,0.03,90739.0,90727.0,0.00035226]
[1768012115221,0.03,90739.0,90727.0,0.01137433]
[1768012115645,0.03,90739.0,90727.0,0.00035226]
[1768012115766,0.03,90738.0,90727.0,0.01137433]
[1768012116189,0.03,90738.0,90728.0,0.01102195]
[1768012117142,0.03,90737.0,90729.0,0.01102183]
[1768012117346,0.03,90737.0,90728.0,0.01102195]
[1768012117506,0.03,90737.0,90729.0,0.01102183]
[1768012117898,0.03,90737.0,90728.0,0.01102195]
[1768012118341,0.04102037,90741.0,90728.0,0.01102195]
[1768012120045,0.03,90739.0,90727.0,0.01137433]
[1768012121478,0.03,90738.0,90728.0,0.01102195]
[1768012121821,0.03,90738.0,90727.0,0.01137433]
[1768012122515,0.07619373,90738.0,90727.0,0.01137433]
[1768012124532,0.07619373,90738.0,90728.0,0.01102195]
[1768012126534,0.07619373,90738.0,90729.0,0.01102183]
[1768012127261,0.03,90737.0,90729.0,0.01102183]
[1768012127773,0.03,90737.0,90728.0,0.06014153]
[1768012127969,0.03,90737.0,90729.0,0.01102183]
[1768012128398,0.03,90736.0,90729.0,0.01102183]
[1768012129374,0.03,90735.0,90729.0,0.01102183]
[1768012129784,0.03,90735.0,90730.0,0.01102171]
[1768012130173,0.03,90735.0,90728.0,0.06014153]
[1768012130378,0.03,90734.0,90728.0,0.06014153]
[1768012130904,0.03,90734.0,90730.0,0.01102171]
[1768012131685,0.03,90733.0,90729.0,0.05675068]
[1768012132133,0.03,90733.0,90730.0,0.01102171]
[1768012132330,0.01102013,90743.0,90733.0,0.000999]
[1768012132684,0.05721374,90744.0,90730.0,0.01102171]
[1768012132893,0.03,90743.0,90730.0,0.01102171]
[1768012134060,0.04102013,90743.0,90729.0,0.05675068]
[1768012134624,0.03,90740.0,90729.0,0.05675068]
[1768012134787,0.03,90740.0,90730.0,0.01102171]
[1768012134988,0.03,90738.0,90730.0,0.01102171]
[1768012137064,0.03,90738.0,90729.0,0.01102183]
[1768012138088,0.03,90738.0,90730.0,0.01102171]
[1768012138254,0.03,90738.0,90729.0,0.01102183]
[1768012139885,0.03,90738.0,90728.0,0.01102195]
[1768012140268,0.03,90737.0,90728.0,0.01102195]
[1768012140458,0.03,90737.0,90728.0,0.0567508]
[1768012140857,0.03,90737.0,90728.0,0.04572885]
[1768012141129,0.03,90737.0,90728.0,0.0567508]
[1768012141327,0.03,90740.0,90728.0,0.0567508]
[1768012141647,0.03,90740.0,90729.0,0.01102183]
[1768012141849,0.03,90740.0,90728.0,0.0567508]
[1768012143011,0.03,90741.0,90729.0,0.01102183]
[1768012143187,0.03,90741.0,90728.0,0.0567508]
[1768012143392,0.03,90741.0,90729.0,0.01102183]
[1768012144314,0.03,90741.0,90728.0,0.0567508]
[1768012144818,0.03,90741.0,90729.0,0.01102183]
[1768012145258,0.03,90740.0,90729.0,0.01102183]
[1768012145783,0.03,90736.0,90728.0,0.01102195]
[1768012145981,0.07935675,90729.0,90728.0,0.01102195]
[1768012146182,0.07835775,90729.0,90728.0,0.01102195]
[1768012146738,0.03,90729.0,90728.0,0.01102195]
[1768012147084,0.07935675,90736.0,90728.0,0.01102195]
[1768012147290,0.03,90736.0,90728.0,0.01102195]
[1768012147886,0.03,90736.0,90728.0,0.05666932]
[1768012148094,0.03,90735.0,90730.0,0.04564737]
[1768012148781,0.03,90735.0,90730.0,0.05666908]
[1768012149156,0.03,90742.0,90730.0,0.05666908]
[1768012150097,0.04102025,90742.0,90730.0,0.04564737]
[1768012150609,0.03,90741.0,90730.0,0.05666908]
[1768012151050,0.03,90741.0,90730.0,0.04564737]
[1768012151264,0.03,90741.0,90730.0,0.05666908]
[1768012151477,0.03,90741.0,90735.0,0.0110211]
[1768012151685,0.02208,90745.0,90735.0,0.0110211]
[1768012151686,0.03,90740.0,90735.0,0.0110211]
[1768012152123,0.03,90740.0,90730.0,0.05666908]
[1768012152783,0.03,90739.0,90731.0,0.01102159]
[1768012152983,0.03,90739.0,90732.0,0.01102146]
[1768012153140,0.03,90739.0,90731.0,0.01102159]
[1768012154315,0.03,90738.0,90731.0,0.01102159]
[1768012155314,0.03,90744.0,90732.0,0.01102146]
[1768012156657,0.03,90744.0,90733.0,0.01102134]
[1768012157062,0.03,90744.0,90734.0,0.01102122]
[1768012157284,0.03,90744.0,90731.0,0.01102159]
[1768012157447,0.03,90744.0,90732.0,0.01102146]
[1768012158145,0.03,90744.0,90733.0,0.01102134]
[1768012159222,0.03,90744.0,90732.0,0.01102146]
[1768012159362,0.03,90744.0,90731.0,0.06612944]
[1768012159363,0.03,90744.0,90731.0,0.01102159]
[1768012160300,0.03,90744.0,90732.0,0.01102146]
[1768012161116,0.03,90744.0,90731.0,0.01102159]
[1768012162129,0.03,90744.0,90733.0,0.01102134]
[1768012162436,0.03,90744.0,90732.0,0.01102146]
[1768012164539,0.03,90744.0,90733.0,0.01102134]
[1768012164743,0.03,90744.0,90732.0,0.01102146]
[1768012164947,0.03,90744.0,90733.0,0.01102134]
[1768012165152,0.03,90744.0,90732.0,0.01102146]
[1768012166900,0.01102025,90742.0,90730.0,0.04564737]
[1768012167209,0.03,90741.0,90730.0,0.04564737]
[1768012167916,0.03,90741.0,90730.0,0.05666908]
[1768012168210,0.03,90743.0,90730.0,0.05666908]
[1768012168908,0.04102013,90743.0,90730.0,0.05666908]
[1768012169112,0.03,90743.0,90730.0,0.04564737]
[1768012169329,0.14344135,90749.0,90727.0,0.00035226]
[1768012169330,0.02977975,90774.0,90771.0,0.04564737]
[1768012169522,9e-05,90781.0,90773.0,0.04557927]
[1768012169722,9e-05,90781.0,90775.0,0.04564737]
[1768012169877,9e-05,90781.0,90774.0,0.02429637]
[1768012169878,0.04935675,90780.0,90778.0,0.01101588]
[1768012170301,0.04935675,90780.0,90776.0,0.01101612]
[1768012170302,0.06920023,90778.0,90777.0,0.011016]
[1768012170618,0.06920023,90775.0,90774.0,0.06836185]
[1768012170776,0.03,90775.0,90774.0,0.05892737]
[1768012171159,0.000999,90774.0,90767.0,0.02429637]
[1768012171385,0.03,90775.0,90767.0,0.02429637]
[1768012171386,4.656e-05,90778.0,90772.0,0.02207999]
[1768012171786,4.656e-05,90778.0,90773.0,0.02208]
[1768012172088,4.656e-05,90778.0,90773.0,0.02193017]
[1768012172883,0.000719,90773.0,90771.0,0.04564737]
[1768012173086,0.03,90776.0,90772.0,0.02208]
[1768012173642,0.03,90774.0,90772.0,0.02208]
[1768012174742,0.03,90777.0,90772.0,0.02208]
[1768012175336,0.03,90777.0,90768.0,0.04777802]
[1768012175337,0.000719,90772.0,90771.0,0.02208]
[1768012175743,4.656e-05,90778.0,90771.0,0.02208]
[1768012176296,4.656e-05,90778.0,90768.0,0.04777802]
[1768012176297,0.03004656,90778.0,90768.0,0.04777802]
[1768012176499,0.000719,90771.0,90770.0,0.02208]
[1768012176832,0.03,90776.0,90770.0,0.02208]
[1768012177438,0.03,90775.0,90770.0,0.02208]
[1768012178420,0.03,90774.0,90770.0,0.02208]
[1768012179476,4.656e-05,90778.0,90770.0,0.02208]
[1768012181010,0.03004656,90778.0,90770.0,0.02208]
[1768012181409,0.03004656,90778.0,90771.0,0.01101673]
[1768012181608,0.03004656,90778.0,90772.0,0.01101661]
[1768012181786,0.03004656,90778.0,90773.0,0.01101649]
[1768012181969,0.03004656,90778.0,90772.0,0.01101661]
[1768012182173,0.03,90777.0,90772.0,0.01101661]
[1768012182598,0.03,90777.0,90771.0,0.01101673]
[1768012183007,0.03,90777.0,90770.0,0.03309685]
[1768012183205,4.656e-05,90778.0,90770.0,0.02208]
[1768012183362,4.656e-05,90778.0,90770.0,0.03309685]
[1768012184583,4.656e-05,90778.0,90771.0,0.01101673]
[1768012184969,4.656e-05,90778.0,90770.0,0.03309685]
[1768012185168,4.656e-05,90778.0,90772.0,0.01101661]
[1768012185380,4.656e-05,90778.0,90771.0,0.01101673]
[1768012186272,4.656e-05,90778.0,90770.0,0.02208]
[1768012186406,4.656e-05,90778.0,90770.0,0.03309685]
[1768012186605,4.656e-05,90778.0,90770.0,0.02208]
[1768012188247,0.03004656,90778.0,90770.0,0.02208]
[1768012189294,0.03,90777.0,90770.0,0.02208]
[1768012189998,0.03,90777.0,90770.0,0.03309685]
[1768012190197,0.03,90776.0,90770.0,0.02208]
[1768012191358,0.07617304,90775.0,90770.0,0.02208]
[1768012191974,0.07617304,90775.0,90764.0,0.01101758]
[1768012192169,0.07617304,90775.0,90765.0,0.03309746]
[1768012192524,0.07617304,90775.0,90766.0,0.01101734]
[1768012192644,0.07617304,90775.0,90765.0,0.03309746]
[1768012192846,0.07617304,90775.0,90765.0,0.02208]
[1768012193910,0.07617304,90775.0,90765.0,0.03309746]
[1768012194210,0.01106244,90778.0,90765.0,0.03309746]
[1768012194211,0.03,90774.0,90766.0,0.04784736]
[1768012195201,0.03,90773.0,90766.0,0.04784736]
[1768012196310,0.03,90777.0,90766.0,0.04784736]
[1768012196507,0.03,90775.0,90760.0,0.05886542]
[1768012196710,0.07617304,90773.0,90767.0,0.021361]
[1768012196908,0.01101624,90775.0,90767.0,0.021361]
[1768012196909,0.07617304,90768.0,90767.0,0.021361]
[1768012197085,0.03,90768.0,90767.0,0.021361]
[1768012198055,0.03,90774.0,90767.0,0.021361]
[1768012199164,0.04101637,90774.0,90767.0,0.021361]
[1768012199907,0.03,90762.0,90760.0,0.021361]
[1768012200112,0.01101661,90772.0,90761.0,0.02208]
[1768012200113,0.02573154,90771.0,90761.0,0.02208]
[1768012200312,0.02573154,90771.0,90758.0,0.01101831]
[1768012200513,0.02573154,90768.0,90762.0,0.000661]
[1768012200976,0.02573154,90768.0,90763.0,0.02208]
[1768012201171,0.05573154,90764.0,90763.0,0.02208]
[1768012202491,0.01101697,90769.0,90763.0,0.02208]
[1768012202641,0.03,90766.0,90764.0,0.04784736]
[1768012202850,0.03,90766.0,90762.0,0.000661]
[1768012203077,0.03,90766.0,90762.0,0.022741]
[1768012203254,0.03,90766.0,90762.0,0.06775213]
[1768012203454,0.03,90766.0,90763.0,0.04501113]
[1768012203640,0.03,90765.0,90763.0,0.04501113]
[1768012204701,0.03,90764.0,90763.0,0.04501113]
[1768012206424,0.03,90779.0,90762.0,0.022741]
[1768012206425,0.01101661,90772.0,90764.0,0.000999]
[1768012206629,0.01101661,90772.0,90762.0,0.022741]
[1768012207347,0.03,90771.0,90762.0,0.022741]
[1768012207545,0.04101673,90771.0,90763.0,0.04501113]
[1768012207775,0.03,90771.0,90763.0,0.04501113]
[1768012208266,0.03,90771.0,89255.0,0.001]
[1768012208267,0.03,90765.0,90754.0,0.02208]
[1768012208491,0.03,90765.0,90755.0,0.04501113]
[1768012209306,0.03,90764.0,90757.0,0.04501113]
[1768012210561,0.03,90763.0,90757.0,0.04501113]
[1768012211643,0.04101734,90766.0,90757.0,0.04501113]
[1768012212996,0.03,90766.0,90757.0,0.04501113]
[1768012213140,0.03,90765.0,90757.0,0.04501113]
[1768012216267,0.01101734,90766.0,90757.0,0.04501113]
[1768012216268,0.03,90764.0,90757.0,0.04501113]
[1768012216708,0.01101649,90773.0,90757.0,0.04501113]
[1768012216928,0.01101637,90774.0,90762.0,0.04501113]
[1768012217141,0.01101576,90779.0,90766.0,0.04501113]
[1768012217270,0.03,90777.0,90766.0,0.04501113]
[1768012218678,0.041016,90777.0,90766.0,0.04501113]
[1768012219078,0.03,90775.0,90766.0,0.04501113]
[1768012220347,0.03,90774.0,90766.0,0.05602847]
[1768012220960,0.03,90774.0,90766.0,0.04501113]
[1768012221216,0.03,90773.0,90766.0,0.04501113]
[1768012221593,0.03,90773.0,90766.0,0.05602847]
[1768012221894,0.03,90773.0,90766.0,0.04501113]
[1768012222325,0.03,90775.0,90766.0,0.04501113]
[1768012223433,0.03,90774.0,90766.0,0.04501113]
[1768012224449,0.03,90773.0,90766.0,0.04501113]
[1768012225413,0.03,90772.0,90766.0,0.04501113]
[1768012226866,0.03,90771.0,90766.0,0.04501113]
[1768012227927,0.03,90775.0,90763.0,0.0110177]
[1768012228086,0.03,90775.0,90762.0,0.03309782]
[1768012228518,0.03,90775.0,90763.0,0.0110177]
[1768012228689,0.04101624,90775.0,90762.0,0.03309782]
[1768012229048,0.06609619,90777.0,90762.0,0.03309782]
[1768012229049,0.03,90774.0,90763.0,0.0110177]
[1768012229342,0.03,90774.0,90763.0,0.05602883]
[1768012230136,0.03,90773.0,90763.0,0.05602883]
[1768012230379,0.03,90773.0,90763.0,0.04501113]
[1768012231199,0.04101624,90775.0,90763.0,0.04501113]
[1768012231387,0.03,90775.0,90763.0,0.04501113]
[1768012233479,0.04101649,90773.0,90763.0,0.04501113]
[1768012233824,0.03,90773.0,90763.0,0.04501113]
[1768012234179,0.03,90771.0,90763.0,0.04501113]
[1768012235324,0.03,90770.0,90763.0,0.04501113]
[1768012236230,0.03,90771.0,90763.0,0.04501113]
[1768012236575,0.03,90771.0,90762.0,0.02208]
[1768012236783,0.05573154,90764.0,90762.0,0.02208]
[1768012237033,0.05573154,90764.0,90751.0,0.0442299]
[1768012237034,0.05573154,90764.0,90763.0,0.02208]
[1768012237202,0.03,90764.0,90763.0,0.02208]
[1768012237878,0.03,90766.0,90764.0,0.04630306]
[1768012238082,0.03,90763.0,90762.0,0.02208]
[1768012238554,0.03,90763.0,90762.0,0.06838306]
[1768012239149,0.03,90765.0,90763.0,0.04630306]
[1768012240142,0.03,90764.0,90763.0,0.04630306]
[1768012240844,0.05573154,90763.0,90762.0,0.02208]
[1768012241044,0.03637544,90763.0,90762.0,0.02208]
[1768012242378,0.03,90763.0,90762.0,0.02208]
[1768012242885,0.03,90763.0,90762.0,0.06838306]
[1768012243541,0.04101734,90766.0,90763.0,0.04630306]
[1768012244436,0.03,90766.0,90763.0,0.04630306]
[1768012244757,0.03,90765.0,90763.0,0.04630306]
[1768012245277,0.03,90765.0,90763.0,0.04615256]
[1768012245834,0.01101709,90768.0,90763.0,0.04615256]
[1768012245835,0.03,90764.0,90763.0,0.04615256]
[1768012247973,0.03,90767.0,90763.0,0.04615256]
[1768012249605,0.03,90767.0,90762.0,0.02208]
[1768012249802,0.03,90766.0,90763.0,0.04630306]
[1768012251202,0.01101709,90768.0,90763.0,0.04630306]
[1768012251203,0.03,90765.0,90763.0,0.04630306]
[1768012252285,0.03,90767.0,90763.0,0.04630306]
[1768012252721,0.03,90765.0,90763.0,0.04630306]
[1768012253758,0.03,90764.0,90763.0,0.04630306]
[1768012254929,0.03,90765.0,90763.0,0.04630306]
[1768012255628,0.03,90765.0,90759.0,0.02208]
[1768012255830,0.01101697,90769.0,90751.0,0.0001499]
[1768012255831,0.01101782,90762.0,90751.0,0.0001499]
[1768012256124,0.01101782,90762.0,90753.0,0.02153872]
[1768012256125,0.04101819,90759.0,90753.0,0.02153872]
[1768012256508,0.03,90759.0,90753.0,0.02153872]
[1768012257661,0.04101819,90759.0,90753.0,0.02153872]
[1768012257989,0.03,90759.0,90753.0,0.02153872]
[1768012258602,0.03,90758.0,90753.0,0.02153872]
[1768012259814,0.03652594,90761.0,90753.0,0.02153872]
[1768012260235,0.04754388,90761.0,90753.0,0.02153872]
[1768012260438,0.03,90759.0,90751.0,0.0001499]
[1768012261164,0.03,90759.0,90752.0,0.04739632]
[1768012261419,0.01101794,90761.0,90752.0,0.04739632]
[1768012261623,0.03,90760.0,90752.0,0.04739632]
[1768012265307,0.04101806,90760.0,90752.0,0.04739632]
[1768012265944,0.03,90756.0,90752.0,0.04739632]
[1768012267283,0.03,90758.0,90752.0,0.04739632]
[1768012268197,0.04101831,90758.0,90752.0,0.04739632]
[1768012271226,0.03,90756.0,90752.0,0.04739632]
[1768012271650,0.03,90756.0,90751.0,0.0001499]
[1768012271855,0.03,90756.0,90751.0,0.0483525]
[1768012272630,0.03,90757.0,90751.0,0.0483525]
[1768012273017,0.01101831,90758.0,90751.0,0.0483525]
[1768012275128,0.01101843,90757.0,90751.0,0.0483525]
[1768012276445,0.01092876,90757.0,90751.0,0.0483525]
[1768012276608,0.01083909,90757.0,90751.0,0.0483525]
[1768012279089,0.01083909,90757.0,90751.0,0.0001499]
[1768012279804,0.01083909,90757.0,90752.0,0.0482026]
[1768012281680,0.03,90756.0,90752.0,0.0482026]
[1768012284021,0.03,90755.0,90752.0,0.0482026]
[1768012284877,0.01101819,90759.0,90755.0,0.000999]
[1768012285100,0.03,90758.0,90755.0,0.000999]
[1768012285298,0.03,90758.0,90752.0,0.0482026]
[1768012286154,0.03,90759.0,90752.0,0.0482026]
[1768012286348,0.03,90759.0,90751.0,0.0001499]
[1768012286913,0.04101819,90759.0,90751.0,0.0001499]
[1768012287109,0.00601819,90759.0,90751.0,0.0001499]
[1768012288456,0.03,90755.0,90751.0,0.0001499]
[1768012289458,0.03,90756.0,90751.0,0.0001499]
[1768012289835,0.03,90756.0,90752.0,0.0482026]
[1768012290443,0.03,90755.0,90752.0,0.0482026]
[1768012291551,0.03,90754.0,90752.0,0.0482026]
[1768012292542,0.01101843,90757.0,90752.0,0.0482026]
[1768012292543,0.03,90755.0,90752.0,0.0482026]
[1768012293429,0.03,90754.0,90752.0,0.0482026]
[1768012294450,0.03,90756.0,90752.0,0.0482026]
[1768012294653,0.03,90753.0,90752.0,0.0482026]
[1768012295620,0.03,90756.0,90752.0,0.0482026]
[1768012296980,0.09611325,90754.0,90751.0,0.0001499]
[1768012297196,0.04101879,90754.0,90751.0,0.0001499]
[1768012298830,0.03,90754.0,90751.0,0.0001499]
[1768012299030,0.04101879,90754.0,90751.0,0.0001499]
[1768012301706,0.04101879,90754.0,90751.0,0.0467851]
[1768012303158,0.04101879,90754.0,90751.0,0.0001499]
[1768012311417,0.09611282,90754.0,90751.0,0.0001499]
[1768012313445,0.03,90748.0,90745.0,0.02208]
[1768012313652,0.03,90748.0,90745.0,0.0701134]
[1768012313961,0.03,90748.0,90746.0,0.0480334]
[1768012314489,0.03,90747.0,90746.0,0.0480334]
[1768012316799,0.01101891,90753.0,90747.0,0.000999]
[1768012316927,0.01101891,90753.0,90746.0,0.0480334]
[1768012317136,0.01101879,90754.0,90746.0,0.0480334]
[1768012317376,0.01101904,90752.0,90746.0,0.0480334]
[1768012317785,0.03,90750.0,90746.0,0.0480334]
[1768012318351,0.03,90750.0,90742.0,0.0001499]
[1768012318352,0.03,90745.0,90743.0,0.0480334]
[1768012318557,0.03,90745.0,90744.0,0.02208]
[1768012319577,0.04101964,90747.0,90744.0,0.02208]
[1768012320762,0.03,90746.0,90744.0,0.0701134]
[1768012321169,0.03,90746.0,90744.0,0.02208]
[1768012321815,0.03,90746.0,90745.0,0.0480334]
[1768012322011,0.03,90744.0,90742.0,0.0481833]
[1768012330258,0.03,90740.0,90733.0,0.0001499]
[1768012330933,0.04102049,90740.0,90733.0,0.0001499]
[1768012331117,0.03,90740.0,90733.0,0.0001499]
[1768012331315,0.03,90739.0,90733.0,0.0001499]
[1768012331520,0.03,90739.0,90733.0,0.0222299]
[1768012332374,0.03,90738.0,90733.0,0.0222299]
[1768012333434,0.03,90740.0,90733.0,0.0222299]
[1768012333854,0.04102049,90740.0,90733.0,0.0222299]
[1768012334616,0.03,90738.0,90733.0,0.00050216]